[Event "Torneo Nuevo Centro. Jornada 11"]
[Site "Chess.com"]
[Date "2020.08.28"]
[Round "8"]
[White "Roca Cruz, Rafael"]
[Black "Yatseta Fernandez, Marc Kazymyr"]
[Result "1/2-1/2"]
[WhiteElo "1798"]
[BlackElo "1525"]
[TimeControl "180+2"]
[EndTime "11:59:56 PDT"]
[Termination "Partida en tablas por material insuficiente"]

1. d4 {[%clk 0:03:00]} 1... Nf6 {[%clk 0:02:58.7]} 2. c4 {[%clk 0:03:01]} 2...
e5 {[%clk 0:02:59.6]} 3. dxe5 {[%clk 0:03:02]} 3... Ne4 {[%clk 0:03:00.5]} 4. a3
{[%clk 0:03:02.8]} 4... b6 {[%clk 0:02:52.7]} 5. Nf3 {[%clk 0:03:01.6]} 5... Bb7
{[%clk 0:02:48.4]} 6. e3 {[%clk 0:02:57.5]} 6... d5 {[%clk 0:02:45.3]} 7. cxd5
{[%clk 0:02:57.8]} 7... Qxd5 {[%clk 0:02:35]} 8. Qxd5 {[%clk 0:02:41.8]} 8...
Bxd5 {[%clk 0:02:34.7]} 9. Nbd2 {[%clk 0:02:41.2]} 9... Nxd2 {[%clk 0:02:05.2]}
10. Bxd2 {[%clk 0:02:41.7]} 10... Bxf3 {[%clk 0:01:55.1]} 11. gxf3 {[%clk
0:02:42.3]} 11... Nd7 {[%clk 0:01:51.4]} 12. Bb5 {[%clk 0:02:39.9]} 12... O-O-O
{[%clk 0:01:51.4]} 13. Rc1 {[%clk 0:02:35.9]} 13... Nxe5 {[%clk 0:01:47.4]} 14.
Be2 {[%clk 0:02:21.5]} 14... Nd3+ {[%clk 0:01:20.6]} 15. Bxd3 {[%clk 0:02:21.1]}
15... Rxd3 {[%clk 0:01:22.5]} 16. Ke2 {[%clk 0:02:23]} 16... Rd7 {[%clk
0:01:22.1]} 17. Bc3 {[%clk 0:02:23.8]} 17... f6 {[%clk 0:01:22.1]} 18. Rhg1
{[%clk 0:02:24.4]} 18... Rg8 {[%clk 0:01:21.3]} 19. Bxf6 {[%clk 0:02:23.8]}
19... g6 {[%clk 0:01:18.1]} 20. Be5 {[%clk 0:01:59.4]} 20... Bd6 {[%clk
0:01:12.4]} 21. Bg3 {[%clk 0:01:57.6]} 21... Rgd8 {[%clk 0:01:00.7]} 22. Rc2
{[%clk 0:01:53.1]} 22... Kb7 {[%clk 0:00:43.7]} 23. Rgc1 {[%clk 0:01:53.7]}
23... c5 {[%clk 0:00:35.5]} 24. Rd1 {[%clk 0:01:29.5]} 24... Be7 {[%clk
0:00:33.1]} 25. Rcd2 {[%clk 0:01:25.3]} 25... Rxd2+ {[%clk 0:00:30.5]} 26. Rxd2
{[%clk 0:01:26.6]} 26... Rxd2+ {[%clk 0:00:31.8]} 27. Kxd2 {[%clk 0:01:28.5]}
27... Bf6 {[%clk 0:00:31.2]} 28. b3 {[%clk 0:01:27.6]} 28... a6 {[%clk
0:00:30.9]} 29. Kd3 {[%clk 0:01:27.4]} 29... Kc6 {[%clk 0:00:32.2]} 30. e4
{[%clk 0:01:21.3]} 30... Bd4 {[%clk 0:00:30.9]} 31. f4 {[%clk 0:01:09]} 31... b5
{[%clk 0:00:25.3]} 32. f3 {[%clk 0:01:03.4]} 32... Kd7 {[%clk 0:00:20]} 33. Be1
{[%clk 0:01:03]} 33... Ke6 {[%clk 0:00:19.9]} 34. h3 {[%clk 0:00:50.5]} 34...
Bg7 {[%clk 0:00:13.9]} 35. Bf2 {[%clk 0:00:50.3]} 35... Kd6 {[%clk 0:00:12.3]}
36. e5+ {[%clk 0:00:45.3]} 36... Kd5 {[%clk 0:00:10.2]} 37. Be3 {[%clk
0:00:44.3]} 37... Bh6 {[%clk 0:00:09.3]} 38. Bd2 {[%clk 0:00:20.6]} 38... Bf8
{[%clk 0:00:09.9]} 39. Bc3 {[%clk 0:00:19]} 39... c4+ {[%clk 0:00:11]} 40. bxc4+
{[%clk 0:00:19.7]} 40... bxc4+ {[%clk 0:00:12.9]} 41. Kc2 {[%clk 0:00:17.5]}
41... Bxa3 {[%clk 0:00:14.4]} 42. Ba5 {[%clk 0:00:15.8]} 42... Bc5 {[%clk
0:00:13.8]} 43. Bc3 {[%clk 0:00:16.3]} 43... Be3 {[%clk 0:00:14.6]} 44. Bd2
{[%clk 0:00:16.7]} 44... Bxd2 {[%clk 0:00:14.5]} 45. Kxd2 {[%clk 0:00:17.8]}
45... a5 {[%clk 0:00:14.9]} 46. Kc3 {[%clk 0:00:19]} 46... a4 {[%clk 0:00:12.5]}
47. Kb4 {[%clk 0:00:19.5]} 47... Kd4 {[%clk 0:00:09.4]} 48. Kxa4 {[%clk
0:00:20.2]} 48... c3 {[%clk 0:00:10.3]} 49. e6 {[%clk 0:00:20.6]} 49... Kd3
{[%clk 0:00:11.6]} 50. e7 {[%clk 0:00:22]} 50... c2 {[%clk 0:00:13]} 51. e8=Q
{[%clk 0:00:23.2]} 51... c1=Q {[%clk 0:00:13.4]} 52. Qe4+ {[%clk 0:00:24.2]}
52... Kd2 {[%clk 0:00:12.9]} 53. Qb4+ {[%clk 0:00:21.8]} 53... Qc3 {[%clk
0:00:12.5]} 54. Qd6+ {[%clk 0:00:16.7]} 54... Kc2 {[%clk 0:00:11.3]} 55. Qe5
{[%clk 0:00:14.7]} 55... Qb3+ {[%clk 0:00:11.1]} 56. Ka5 {[%clk 0:00:15]} 56...
Qc3+ {[%clk 0:00:12.3]} 57. Kb6 {[%clk 0:00:14]} 57... Qxf3 {[%clk 0:00:09.8]}
58. h4 {[%clk 0:00:14.3]} 58... Kd3 {[%clk 0:00:07.2]} 59. Qd6+ {[%clk
0:00:11.7]} 59... Ke3 {[%clk 0:00:07]} 60. Qe7+ {[%clk 0:00:12.1]} 60... Kxf4
{[%clk 0:00:07.9]} 61. Qxh7 {[%clk 0:00:13.3]} 61... Qe3+ {[%clk 0:00:07.8]} 62.
Kc6 {[%clk 0:00:13.1]} 62... Qe4+ {[%clk 0:00:08.4]} 63. Kc5 {[%clk 0:00:13.2]}
63... Qf5+ {[%clk 0:00:09.3]} 64. Kd4 {[%clk 0:00:12.3]} 64... Qe4+ {[%clk
0:00:10.2]} 65. Kc3 {[%clk 0:00:13.2]} 65... Qe3+ {[%clk 0:00:11.3]} 66. Kc2
{[%clk 0:00:14.1]} 66... Qe2+ {[%clk 0:00:12.3]} 67. Kc1 {[%clk 0:00:14.9]}
67... Qe1+ {[%clk 0:00:13]} 68. Kb2 {[%clk 0:00:15.9]} 68... Qd2+ {[%clk
0:00:13.7]} 69. Kb3 {[%clk 0:00:16.9]} 69... Qd3+ {[%clk 0:00:14.9]} 70. Kb4
{[%clk 0:00:17.6]} 70... Qd4+ {[%clk 0:00:15.9]} 71. Kb5 {[%clk 0:00:18.5]}
71... Qd5+ {[%clk 0:00:16.9]} 72. Kb6 {[%clk 0:00:19.3]} 72... Qd6+ {[%clk
0:00:16.7]} 73. Kb7 {[%clk 0:00:19.1]} 73... Qd5+ {[%clk 0:00:17.8]} 74. Kc7
{[%clk 0:00:18.1]} 74... Qe5+ {[%clk 0:00:18.3]} 75. Kd7 {[%clk 0:00:17.3]}
75... Qf5+ {[%clk 0:00:19.1]} 76. Ke8 {[%clk 0:00:14.4]} 76... Qe6+ {[%clk
0:00:16.1]} 77. Kf8 {[%clk 0:00:08.4]} 77... Qf6+ {[%clk 0:00:14.9]} 78. Kg8
{[%clk 0:00:06.9]} 78... Qd8+ {[%clk 0:00:12.6]} 79. Kg7 {[%clk 0:00:07.5]}
79... Qe7+ {[%clk 0:00:10.4]} 80. Kxg6 {[%clk 0:00:07.9]} 80... Qxh7+ {[%clk
0:00:10.2]} 81. Kxh7 {[%clk 0:00:09.1]} 81... Kf5 {[%clk 0:00:10.9]} 82. h5
{[%clk 0:00:07.7]} 82... Kf6 {[%clk 0:00:06.9]} 83. Kg8 {[%clk 0:00:02.9]} 83...
Kg5 {[%clk 0:00:05.9]} 84. h6 {[%clk 0:00:04.2]} 84... Kxh6 {[%clk 0:00:06.5]}
1/2-1

[Event "Torneo Nuevo Centro. Jornada 11"]
[Site "Chess.com"]
[Date "2020.08.28"]
[Round "9"]
[White "Zamora Soler, Raul"]
[Black "Donate Peris, Jose Manuel"]
[Result "1-0"]
[WhiteElo "1860"]
[BlackElo "1513"]
[TimeControl "180+2"]
[EndTime "12:01:52 PDT"]
[Termination "Victoria de rzamora80 por abandono"]

1. e4 {[%clk 0:03:01.9]} 1... e6 {[%clk 0:03:00.6]} 2. d4 {[%clk 0:03:01.9]}
2... d5 {[%clk 0:03:01.3]} 3. exd5 {[%clk 0:03:03]} 3... exd5 {[%clk 0:03:01.6]}
4. Bd3 {[%clk 0:03:04.2]} 4... Nf6 {[%clk 0:03:01.3]} 5. Ne2 {[%clk 0:03:05.2]}
5... Bg4 {[%clk 0:02:57.3]} 6. f3 {[%clk 0:03:05.8]} 6... Bh5 {[%clk 0:02:54.8]}
7. O-O {[%clk 0:03:06.6]} 7... Nc6 {[%clk 0:02:47.8]} 8. c3 {[%clk 0:03:03.5]}
8... Qd7 {[%clk 0:02:42.5]} 9. Nf4 {[%clk 0:03:03.2]} 9... O-O-O {[%clk
0:02:34.5]} 10. Nxh5 {[%clk 0:03:03.3]} 10... Nxh5 {[%clk 0:02:34.2]} 11. g4
{[%clk 0:02:56.4]} 11... Nf6 {[%clk 0:02:34]} 12. Bf5 {[%clk 0:02:57.1]} 1

[Event "Torneo Nuevo Centro. Jornada 11"]
[Site "Chess.com"]
[Date "2020.08.28"]
[Round "9"]
[White "Bascuñana Sánchez, Pablo"]
[Black "Miranda Calvo, Max Rodrigo"]
[Result "1-0"]
[WhiteElo "1658"]
[BlackElo "1299"]
[TimeControl "180+2"]
[EndTime "12:03:04 PDT"]
[Termination "Victoria de Pabasan2010 por abandono"]

1. e4 {[%clk 0:03:01.9]} 1... e5 {[%clk 0:02:57.9]} 2. Nf3 {[%clk 0:03:02]} 2...
Nc6 {[%clk 0:02:59.3]} 3. Bc4 {[%clk 0:03:02.1]} 3... Bc5 {[%clk 0:02:58.5]} 4.
c3 {[%clk 0:03:03.1]} 4... d6 {[%clk 0:02:59.4]} 5. d4 {[%clk 0:03:03.7]} 5...
exd4 {[%clk 0:02:58.4]} 6. cxd4 {[%clk 0:03:04.8]} 6... Bb4+ {[%clk 0:02:56.1]}
7. Nc3 {[%clk 0:03:05.3]} 7... Bg4 {[%clk 0:02:55.3]} 8. O-O {[%clk 0:02:52.9]}
8... Nge7 {[%clk 0:02:52.1]} 9. Bxf7+ {[%clk 0:02:47.7]} 9... Kf8 {[%clk
0:02:47.7]} 10. Bc4 {[%clk 0:02:41.6]} 10... Bxc3 {[%clk 0:02:48.2]} 11. bxc3
{[%clk 0:02:41.9]} 11... d5 {[%clk 0:02:42.5]} 12. exd5 {[%clk 0:02:40.9]} 12...
Nxd5 {[%clk 0:02:43.7]} 13. Ba3+ {[%clk 0:02:37.7]} 13... Nce7 {[%clk
0:02:42.9]} 14. Qd3 {[%clk 0:02:32.9]} 14... Nb6 {[%clk 0:02:39.6]} 15. h3
{[%clk 0:02:27.7]} 15... Nxc4 {[%clk 0:02:39.8]} 16. Bxe7+ {[%clk 0:02:24.8]}
16... Qxe7 {[%clk 0:02:39.2]} 17. Qxc4 {[%clk 0:02:24.1]} 17... Bxf3 {[%clk
0:02:39.1]} 18. gxf3 {[%clk 0:02:23.7]} 18... Qg5+ {[%clk 0:02:38.9]} 19. Kh2
{[%clk 0:02:23.3]} 19... Qf4+ {[%clk 0:02:38.3]} 20. Kg2 {[%clk 0:02:24]} 20...
Qg5+ {[%clk 0:02:38.4]} 21. Kh2 {[%clk 0:02:24.4]} 21... Qf4+ {[%clk 0:02:38.6]}
22. Kg2 {[%clk 0:02:25]} 22... Qg5+ {[%clk 0:02:39.4]} 23. Kh1 {[%clk
0:02:18.6]} 23... Qg4 {[%clk 0:02:39.6]} 1

[Event "Torneo Nuevo Centro. Jornada 11"]
[Site "Chess.com"]
[Date "2020.08.28"]
[Round "9"]
[White "Echeverria, Nestor"]
[Black "Gukasov, Artem"]
[Result "0-1"]
[WhiteElo "1932"]
[BlackElo "1462"]
[TimeControl "180+2"]
[EndTime "12:03:45 PDT"]
[Termination "Victoria de ArtemGukasov por abandono"]

1. e4 {[%clk 0:03:00.2]} 1... e6 {[%clk 0:03:00.5]} 2. Nf3 {[%clk 0:02:59.1]}
2... d5 {[%clk 0:03:02.4]} 3. e5 {[%clk 0:02:58.8]} 3... c5 {[%clk 0:03:02.7]}
4. b4 {[%clk 0:02:58.8]} 4... cxb4 {[%clk 0:02:58.4]} 5. Bb2 {[%clk 0:02:59.6]}
5... Nc6 {[%clk 0:02:58.8]} 6. d4 {[%clk 0:02:57.5]} 6... Qa5 {[%clk 0:02:56.1]}
7. Nbd2 {[%clk 0:02:57.6]} 7... Nge7 {[%clk 0:02:54.6]} 8. Bd3 {[%clk 0:02:56]}
8... Ng6 {[%clk 0:02:45]} 9. h4 {[%clk 0:02:54.2]} 9... h5 {[%clk 0:02:44.8]}
10. Bxg6 {[%clk 0:02:53.8]} 10... fxg6 {[%clk 0:02:45]} 11. Nb3 {[%clk
0:02:54.5]} 11... Qb6 {[%clk 0:02:45.1]} 12. Qd3 {[%clk 0:02:52.9]} 12... Ne7
{[%clk 0:02:36.8]} 13. Rh3 {[%clk 0:02:48.7]} 13... Nf5 {[%clk 0:02:34.3]} 14.
Rg3 {[%clk 0:02:42.7]} 14... Nxg3 {[%clk 0:02:12.9]} 15. Qxg6+ {[%clk
0:02:42.6]} 15... Kd8 {[%clk 0:02:13.9]} 16. fxg3 {[%clk 0:02:41.3]} 16... Bd7
{[%clk 0:02:11.2]} 17. Ng5 {[%clk 0:02:41.7]} 17... Rh6 {[%clk 0:02:09.6]} 18.
Nf7+ {[%clk 0:02:41.3]} 18... Kc7 {[%clk 0:02:09]} 19. Nxh6 {[%clk 0:02:41.5]}
19... gxh6 {[%clk 0:02:09]} 20. Nc5 {[%clk 0:02:30.7]} 20... Bxc5 {[%clk
0:02:07.4]} 21. dxc5 {[%clk 0:02:30.6]} 21... Qxc5 {[%clk 0:02:08.6]} 22. O-O-O
{[%clk 0:02:28.5]} 22... Rc8 {[%clk 0:02:06.1]} 23. Kb1 {[%clk 0:02:28.4]} 23...
Kb8 {[%clk 0:02:05.3]} 24. Qxh6 {[%clk 0:02:23.2]} 24... Qxc2+ {[%clk 0:02:05]}
0

[Event "Torneo Nuevo Centro. Jornada 11"]
[Site "Chess.com"]
[Date "2020.08.28"]
[Round "9"]
[White "Bercaru, Vlad Ionut"]
[Black "Conejero Martínez, Víctor"]
[Result "1-0"]
[WhiteElo "1710"]
[BlackElo "1353"]
[TimeControl "180+2"]
[EndTime "12:04:01 PDT"]
[Termination "Victoria de Rata29 por abandono"]

1. c4 {[%clk 0:03:01.9]} 1... e5 {[%clk 0:02:58.5]} 2. Nc3 {[%clk 0:03:02.3]}
2... Nc6 {[%clk 0:02:58.7]} 3. Nf3 {[%clk 0:03:02.3]} 3... Bc5 {[%clk
0:02:57.5]} 4. e3 {[%clk 0:03:01.2]} 4... a6 {[%clk 0:02:58.2]} 5. Be2 {[%clk
0:03:01]} 5... d6 {[%clk 0:02:55.5]} 6. O-O {[%clk 0:03:01.2]} 6... f5 {[%clk
0:02:54.3]} 7. d4 {[%clk 0:03:01.9]} 7... Ba7 {[%clk 0:02:50.4]} 8. dxe5 {[%clk
0:03:00.1]} 8... dxe5 {[%clk 0:02:40.9]} 9. Qxd8+ {[%clk 0:02:59.6]} 9... Kxd8
{[%clk 0:02:40.9]} 10. Rd1+ {[%clk 0:02:53.5]} 10... Bd7 {[%clk 0:02:39.9]} 11.
b3 {[%clk 0:02:54.1]} 11... Ke7 {[%clk 0:02:38.1]} 12. Nd5+ {[%clk 0:02:53.6]}
12... Kd8 {[%clk 0:02:30.6]} 13. Bb2 {[%clk 0:02:52.5]} 13... e4 {[%clk
0:02:28.5]} 14. Ng5 {[%clk 0:02:36]} 14... Kc8 {[%clk 0:02:17.8]} 15. Bxg7
{[%clk 0:02:34.4]} 15... Nge7 {[%clk 0:02:15.2]} 16. Nxe7+ {[%clk 0:02:30.7]}
16... Nxe7 {[%clk 0:02:15.3]} 17. Bxh8 {[%clk 0:02:32.2]} 17... h6 {[%clk
0:02:14.2]} 18. Nh3 {[%clk 0:02:32.3]} 18... c6 {[%clk 0:02:06.3]} 19. Be5
{[%clk 0:02:30.2]} 19... Ng6 {[%clk 0:02:04.9]} 20. Bg3 {[%clk 0:02:28.4]} 20...
Ne7 {[%clk 0:01:55]} 21. Bh4 {[%clk 0:02:28.5]} 21... Kd8 {[%clk 0:01:41.4]} 22.
Rd2 {[%clk 0:02:21.2]} 22... Bc5 {[%clk 0:01:39.9]} 23. Rad1 {[%clk 0:02:19.4]}
1

[Event "Torneo Nuevo Centro. Jornada 11"]
[Site "Chess.com"]
[Date "2020.08.28"]
[Round "9"]
[White "Marques Montolio, Luis"]
[Black "Perrot, Fabien "]
[Result "1-0"]
[WhiteElo "1484"]
[BlackElo "1182"]
[TimeControl "180+2"]
[EndTime "12:04:45 PDT"]
[Termination "Victoria de ateneomaritimo por abandono"]

1. e4 {[%clk 0:03:01.9]} 1... e5 {[%clk 0:03:00.7]} 2. Nf3 {[%clk 0:03:01.9]}
2... Nc6 {[%clk 0:02:59.1]} 3. Bb5 {[%clk 0:03:03.2]} 3... a6 {[%clk 0:02:59.5]}
4. Ba4 {[%clk 0:03:03.4]} 4... Nf6 {[%clk 0:03:01]} 5. d3 {[%clk 0:03:03.4]}
5... b5 {[%clk 0:03:02.4]} 6. Bb3 {[%clk 0:03:03.2]} 6... Be7 {[%clk 0:03:03.8]}
7. c3 {[%clk 0:03:01.2]} 7... d6 {[%clk 0:03:05.2]} 8. h3 {[%clk 0:03:01.2]}
8... Bb7 {[%clk 0:03:03.8]} 9. O-O {[%clk 0:03:00.9]} 9... O-O {[%clk
0:03:04.7]} 10. Re1 {[%clk 0:03:01.4]} 10... Re8 {[%clk 0:03:02.5]} 11. Nbd2
{[%clk 0:03:02]} 11... a5 {[%clk 0:03:02.1]} 12. Ng5 {[%clk 0:03:00.8]} 12... h6
{[%clk 0:03:00.9]} 13. Bxf7+ {[%clk 0:02:53.5]} 13... Kh8 {[%clk 0:02:56.8]} 14.
Ne6 {[%clk 0:02:53]} 14... Qd7 {[%clk 0:02:51.4]} 15. Bxe8 {[%clk 0:02:53.5]}
15... Qxe8 {[%clk 0:02:51.9]} 16. f4 {[%clk 0:02:39.3]} 16... Qd7 {[%clk
0:02:50.1]} 17. f5 {[%clk 0:02:40.1]} 17... Nd8 {[%clk 0:02:47.8]} 18. Nxd8
{[%clk 0:02:34.1]} 18... Rxd8 {[%clk 0:02:47.9]} 19. g4 {[%clk 0:02:34]} 19...
Rg8 {[%clk 0:02:48.1]} 20. Nf3 {[%clk 0:02:26.3]} 20... Ne8 {[%clk 0:02:48.2]}
21. Nh4 {[%clk 0:02:26.8]} 21... Bxh4 {[%clk 0:02:48.4]} 22. Rf1 {[%clk
0:02:26.8]} 22... Nf6 {[%clk 0:02:33]} 23. Be3 {[%clk 0:02:24]} 23... Qe7 {[%clk
0:02:17.9]} 24. Qd2 {[%clk 0:02:24.4]} 24... Nxg4 {[%clk 0:02:07.8]} 25. hxg4
{[%clk 0:02:22]} 25... Bg3 {[%clk 0:02:08.9]} 26. Kg2 {[%clk 0:02:05.2]} 26...
Qh4 {[%clk 0:02:07.3]} 27. Rh1 {[%clk 0:02:03.2]} 27... Qxg4 {[%clk 0:01:55.3]}
28. Qd1 {[%clk 0:02:03.2]} 28... Bf4+ {[%clk 0:01:42]} 29. Qxg4 {[%clk
0:02:01.3]} 1

[Event "Torneo Nuevo Centro. Jornada 11"]
[Site "Chess.com"]
[Date "2020.08.28"]
[Round "9"]
[White "Cayon Pelaez, Pablo"]
[Black "Bosch Jordà, Ricard"]
[Result "0-1"]
[WhiteElo "1779"]
[BlackElo "1904"]
[TimeControl "180+2"]
[EndTime "12:05:17 PDT"]
[Termination "Victoria de UltimateLimo por jaque mate"]

1. d4 {[%clk 0:03:01.9]} 1... Nf6 {[%clk 0:03:00.6]} 2. c4 {[%clk 0:03:01.6]}
2... c5 {[%clk 0:02:58.1]} 3. d5 {[%clk 0:03:02.6]} 3... b5 {[%clk 0:02:56.6]}
4. Qc2 {[%clk 0:03:02.9]} 4... d6 {[%clk 0:02:49]} 5. e4 {[%clk 0:03:03.8]} 5...
g6 {[%clk 0:02:49.7]} 6. cxb5 {[%clk 0:03:02]} 6... a6 {[%clk 0:02:50.2]} 7.
bxa6 {[%clk 0:03:02.2]} 7... Bxa6 {[%clk 0:02:50.8]} 8. Bxa6 {[%clk 0:03:03]}
8... Rxa6 {[%clk 0:02:47.1]} 9. Nc3 {[%clk 0:03:02.6]} 9... Bg7 {[%clk
0:02:47.4]} 10. f4 {[%clk 0:02:51.7]} 10... O-O {[%clk 0:02:48]} 11. Nf3 {[%clk
0:02:52.5]} 11... Qa5 {[%clk 0:02:40.3]} 12. O-O {[%clk 0:02:50.5]} 12... Nbd7
{[%clk 0:02:40.1]} 13. Re1 {[%clk 0:02:45.8]} 13... Rfa8 {[%clk 0:02:39.4]} 14.
Bd2 {[%clk 0:02:40.2]} 14... Qb6 {[%clk 0:02:37.8]} 15. Kh1 {[%clk 0:02:35.1]}
15... c4 {[%clk 0:02:38.8]} 16. e5 {[%clk 0:02:20.3]} 16... dxe5 {[%clk
0:02:36.1]} 17. fxe5 {[%clk 0:02:20.9]} 17... Ng4 {[%clk 0:02:36.1]} 18. Be3
{[%clk 0:02:03.3]} 18... Nxe3 {[%clk 0:02:35.5]} 19. Qf2 {[%clk 0:02:00]} 19...
Nxd5 {[%clk 0:02:21.9]} 20. Qd2 {[%clk 0:01:39.4]} 20... Nxc3 {[%clk 0:02:21.7]}
21. Qxd7 {[%clk 0:01:09.6]} 21... Qxb2 {[%clk 0:02:09.8]} 22. Qxe7 {[%clk
0:01:01.4]} 22... Rxa2 {[%clk 0:02:01]} 23. Rxa2 {[%clk 0:00:55.8]} 23... Rxa2
{[%clk 0:02:01.2]} 24. Ng5 {[%clk 0:00:50.8]} 24... Qxg2# {[%clk 0:01:59.3]} 0

[Event "Torneo Nuevo Centro. Jornada 11"]
[Site "Chess.com"]
[Date "2020.08.28"]
[Round "9"]
[White "Muñoz Pantoja, Miguel"]
[Black "Donate Moreno, Silvia"]
[Result "1-0"]
[WhiteElo "2532"]
[BlackElo "1896"]
[TimeControl "180+2"]
[EndTime "12:05:18 PDT"]
[Termination "Victoria de Indalsa por abandono"]

1. e4 {[%clk 0:03:01.9]} 1... c5 {[%clk 0:03:00.3]} 2. g3 {[%clk 0:03:02.5]}
2... d5 {[%clk 0:03:00]} 3. exd5 {[%clk 0:03:02.8]} 3... Qxd5 {[%clk 0:03:01.9]}
4. Nf3 {[%clk 0:03:04.3]} 4... Bg4 {[%clk 0:03:01.5]} 5. Be2 {[%clk 0:03:05]}
5... Nc6 {[%clk 0:02:49.8]} 6. h3 {[%clk 0:03:05.3]} 6... Bh5 {[%clk 0:02:47.6]}
7. Nc3 {[%clk 0:03:04.8]} 7... Qd7 {[%clk 0:02:45]} 8. d3 {[%clk 0:03:05.8]}
8... Nf6 {[%clk 0:02:43.5]} 9. Be3 {[%clk 0:03:07.1]} 9... e6 {[%clk 0:02:36]}
10. g4 {[%clk 0:03:05.6]} 10... Bg6 {[%clk 0:02:35]} 11. d4 {[%clk 0:03:07.2]}
11... cxd4 {[%clk 0:02:23.7]} 12. Nxd4 {[%clk 0:03:06.9]} 12... Nxd4 {[%clk
0:02:19.2]} 13. Qxd4 {[%clk 0:03:07.5]} 13... Qxd4 {[%clk 0:02:14.9]} 14. Bxd4
{[%clk 0:03:08.3]} 14... Be7 {[%clk 0:02:15.6]} 15. Bf3 {[%clk 0:03:06.9]} 15...
O-O {[%clk 0:02:13]} 16. O-O-O {[%clk 0:03:07.6]} 16... h5 {[%clk 0:01:55.2]}
17. Bxb7 {[%clk 0:02:54.1]} 17... Rab8 {[%clk 0:01:55.5]} 18. Bf3 {[%clk
0:02:54.2]} 18... hxg4 {[%clk 0:01:54.6]} 19. hxg4 {[%clk 0:02:55.1]} 19... Rb4
{[%clk 0:01:51.9]} 20. a3 {[%clk 0:02:52.7]} 20... Rc4 {[%clk 0:01:51.2]} 21.
Be2 {[%clk 0:02:36.4]} 21... Rc7 {[%clk 0:01:46.8]} 22. Rh3 {[%clk 0:02:29]}
22... Rfc8 {[%clk 0:01:40.4]} 23. Rdh1 {[%clk 0:02:29]} 23... Nh7 {[%clk
0:01:38.6]} 24. Bd3 {[%clk 0:02:24.7]} 24... Bg5+ {[%clk 0:01:35.7]} 25. Kb1
{[%clk 0:02:24.2]} 25... f5 {[%clk 0:01:30.9]} 26. gxf5 {[%clk 0:02:22.4]} 26...
exf5 {[%clk 0:01:32.8]} 27. Rg1 {[%clk 0:02:14.1]} 27... Rd7 {[%clk 0:01:21.9]}
28. Be5 {[%clk 0:02:12.5]} 28... Rc5 {[%clk 0:01:18.3]} 29. f4 {[%clk
0:02:12.6]} 29... Bf7 {[%clk 0:01:07.7]} 30. Bxf5 {[%clk 0:02:10.5]} 1

[Event "Torneo Nuevo Centro. Jornada 11"]
[Site "Chess.com"]
[Date "2020.08.28"]
[Round "9"]
[White "Grigorev, Artur "]
[Black "Ursariu, Nikolas Victor"]
[Result "0-1"]
[WhiteElo "912"]
[BlackElo "1157"]
[TimeControl "180+2"]
[EndTime "12:05:50 PDT"]
[Termination "Victoria de NikolasVictor por tiempo"]

1. d4 {[%clk 0:02:57.1]} 1... d5 {[%clk 0:02:59.1]} 2. Nc3 {[%clk 0:02:55.2]}
2... Nf6 {[%clk 0:02:58.9]} 3. Bf4 {[%clk 0:02:51.1]} 3... Nc6 {[%clk
0:02:58.8]} 4. Qd3 {[%clk 0:02:46]} 4... Bd7 {[%clk 0:02:56]} 5. O-O-O {[%clk
0:02:43.9]} 5... e6 {[%clk 0:02:49.9]} 6. Nf3 {[%clk 0:02:32.8]} 6... Bd6 {[%clk
0:02:46]} 7. Ng5 {[%clk 0:02:24.4]} 7... O-O {[%clk 0:02:45.3]} 8. Nb5 {[%clk
0:02:04.7]} 8... h6 {[%clk 0:02:42.2]} 9. Nf3 {[%clk 0:01:25.6]} 9... Bxf4+
{[%clk 0:02:38.3]} 10. e3 {[%clk 0:01:21]} 10... Bd6 {[%clk 0:02:32.7]} 11. Nxd6
{[%clk 0:01:11.7]} 11... cxd6 {[%clk 0:02:31.3]} 12. g3 {[%clk 0:01:04.8]} 12...
Rc8 {[%clk 0:02:27.2]} 13. Bg2 {[%clk 0:01:01.7]} 13... Nb4 {[%clk 0:02:23.6]}
14. Qb3 {[%clk 0:00:58.3]} 14... Nc6 {[%clk 0:02:18.3]} 15. Qxb7 {[%clk
0:00:54.7]} 15... Rb8 {[%clk 0:02:18.3]} 16. Qa6 {[%clk 0:00:48.3]} 16... Rc8
{[%clk 0:02:12.6]} 17. Qa3 {[%clk 0:00:38.7]} 17... Qc7 {[%clk 0:02:10.9]} 18.
Rd3 {[%clk 0:00:28.1]} 18... Nb4 {[%clk 0:01:59.7]} 19. Qb3 {[%clk 0:00:11.8]}
19... Nxd3+ {[%clk 0:01:55.5]} 0

[Event "Torneo Nuevo Centro. Jornada 11"]
[Site "Chess.com"]
[Date "2020.08.28"]
[Round "9"]
[White "Yuste Valenzuela, Alejandro"]
[Black "Escalona Moncholi, Felix"]
[Result "0-1"]
[WhiteElo "1884"]
[BlackElo "2106"]
[TimeControl "180+2"]
[EndTime "12:05:54 PDT"]
[Termination "Victoria de SchachSpielerESP por abandono"]

1. e4 {[%clk 0:03:01.9]} 1... e6 {[%clk 0:03:00.9]} 2. d4 {[%clk 0:03:02.3]}
2... d5 {[%clk 0:03:02.5]} 3. Nc3 {[%clk 0:03:03.3]} 3... Nf6 {[%clk 0:03:03.2]}
4. Bg5 {[%clk 0:03:03.3]} 4... dxe4 {[%clk 0:03:03.5]} 5. Nxe4 {[%clk
0:03:03.7]} 5... Be7 {[%clk 0:03:04.9]} 6. Bxf6 {[%clk 0:03:04.2]} 6... gxf6
{[%clk 0:03:06.2]} 7. Nf3 {[%clk 0:03:04.2]} 7... f5 {[%clk 0:03:07.4]} 8. Nc3
{[%clk 0:03:03.4]} 8... a6 {[%clk 0:03:08.6]} 9. Bd3 {[%clk 0:02:59.1]} 9... b5
{[%clk 0:03:09.5]} 10. a3 {[%clk 0:02:49]} 10... Bb7 {[%clk 0:03:10.4]} 11. Be2
{[%clk 0:02:42.9]} 11... Bf6 {[%clk 0:03:08.1]} 12. Qd2 {[%clk 0:02:35.1]} 12...
Rg8 {[%clk 0:02:54.4]} 13. Rg1 {[%clk 0:02:09]} 13... Qd6 {[%clk 0:02:51]} 14.
h4 {[%clk 0:02:01]} 14... Nd7 {[%clk 0:02:42.8]} 15. O-O-O {[%clk 0:01:59.9]}
15... O-O-O {[%clk 0:02:37.8]} 16. Kb1 {[%clk 0:01:58.2]} 16... c5 {[%clk
0:02:27.4]} 17. dxc5 {[%clk 0:01:53.8]} 17... Qxc5 {[%clk 0:02:27.1]} 18. Na2
{[%clk 0:01:33.5]} 18... Qxf2 {[%clk 0:02:00]} 19. Nb4 {[%clk 0:01:08.6]} 19...
Nc5 {[%clk 0:01:18]} 20. Bd3 {[%clk 0:00:52.1]} 20... Qxd2 {[%clk 0:01:11.6]}
21. Rxd2 {[%clk 0:00:45.5]} 21... Bxf3 {[%clk 0:01:09.8]} 0